fUSD/lending_fUSD_20240113
["ID","MTS","AMOUNT","RATE_DAILY","PERIOD"]
[311516092,1705171867548,-659.65134669,0.0003562,7]
[311516093,1705171867558,-659.65134669,0.0003562,7]
[311516094,1705171867568,-659.65,0.0003562,7]
[311516095,1705171867577,-509.15409024,0.0003562,7]
[311516096,1705171867588,-509.15409024,0.0003562,7]
[311516097,1705171867597,-509.15409024,0.0003562,7]
[311516098,1705171867606,-509.15409024,0.0003562,7]
[311516099,1705171867616,-509.15409024,0.0003562,7]
[311516100,1705171867625,-509.15409024,0.0003562,7]
[311516101,1705171867634,-509.15409024,0.0003562,7]
[311516102,1705171867644,-509.15409024,0.0003562,7]
[311516103,1705171867653,-509.15409024,0.0003562,7]
[311516104,1705171867663,-509.15409024,0.0003562,7]
[311516105,1705171867673,-509.15409024,0.0003562,7]
[311516106,1705171867682,-509.15409024,0.0003562,7]
[311516107,1705171867692,-509.15409024,0.0003562,7]
[311516108,1705171867705,-509.15409024,0.0003562,7]
[311516109,1705171867714,-509.15409024,0.0003562,7]
[311516110,1705171867723,-509.15409024,0.0003562,7]
[311516111,1705171867733,-509.15409024,0.0003562,7]
[311516112,1705171867743,-509.15409024,0.0003562,7]
[311516113,1705171867753,-509.15409024,0.0003562,7]
[311516114,1705171867763,-509.15,0.0003562,7]
[311516115,1705171867773,-500.0,0.00035687,7]
[311516116,1705171867783,-11317.73,0.000357,7]
[311516117,1705171867795,-19383.82,0.000357,7]
[311516118,1705171867805,-4979.35,0.000357,7]
[311516119,1705171867815,-317.823804,0.000357,2]
[311516120,1705171867824,-317.823814,0.000357,2]
[311516121,1705171867834,-761.0,0.000357,2]
[311516122,1705171867844,-316.18237282,0.00035709,2]
[311516123,1705171867853,-2000.0,0.00035737,2]
[311516124,1705171867863,-152.0,0.0003574,9]
[311516125,1705171867872,-10000.0,0.00035798,2]
[311516126,1705171867882,-1000.0,0.00035809,10]
[311516127,1705171867891,-1000.0,0.00035809,10]
[311516128,1705171867901,-1000.0,0.00035809,10]
[311516129,1705171867910,-1000.0,0.00035809,10]
[311516130,1705171867920,-1000.0,0.00035809,10]
[311516131,1705171867929,-1000.0,0.00035809,10]
[311516132,1705171867940,-1000.0,0.00035809,10]
[311516133,1705171867949,-1000.0,0.00035809,10]
[311516134,1705171867958,-1000.0,0.00035809,10]
[311516135,1705171867968,-1000.0,0.00035809,10]
[311516136,1705171867978,-1000.0,0.00035809,10]
[311516137,1705171867987,-1000.0,0.00035809,10]
[311516138,1705171867997,-1000.0,0.00035809,10]
[311516139,1705171868017,-1000.0,0.00035809,10]
[311516140,1705171868037,-1000.0,0.00035809,10]
[311516141,1705171868047,-1000.0,0.00035809,10]
[311516142,1705171868058,-1000.0,0.00035809,10]
[311516143,1705171868068,-1000.0,0.00035809,10]
[311516144,1705171868078,-3197.052341,0.00035817,2]
[311516145,1705171868088,-928.197093,0.00035817,2]
[311516146,1705171868098,-3028.818103,0.00035817,2]
[311516147,1705171868109,-450.0,0.00035847,3]
[311516148,1705171868119,-11317.73,0.000359,7]
[311516149,1705171868128,-19383.82,0.000359,7]
[311516150,1705171868138,-4979.35,0.000359,7]
[311516151,1705171868147,-14299.50816225,0.000359,8]
[311516152,1705171868157,-500.0,0.00035946,7]
[311516153,1705171868167,-182.980509,0.00035964,2]
[311516154,1705171868177,-171.389841,0.00035964,2]
[311516155,1705171868186,-6558.3994044,0.00035997,2]
[311516156,1705171868195,-1100.63108831,0.00035999,10]
[311516157,1705171868205,-200000.0,0.00036,6]
[311516158,1705171868215,-120000.0,0.00036,3]
[311516159,1705171868225,-6620.68,0.00036,12]
[311516160,1705171868235,-1660.95673049,0.00036,4]
[311516161,1705171868245,-760.92227324,0.00036,4]
[311516162,1705171868254,-49219.83954883,0.00036,2]
[311516163,1705171868263,-526.065607,0.00036,7]
[311516164,1705171868273,-500.0,0.00036,15]
[311516165,1705171868282,-55449.56001713,0.00036,4]
[311516166,1705171868294,-1995.0,0.00036,3]
[311516167,1705171868303,-16916.90502736,0.00036,2]
[311516168,1705171868312,-58427.82649309,0.00036,5]
[311516169,1705171868321,-11874.7539677,0.00036,2]
[311516170,1705171868330,-20000.0,0.00036,3]
[311516171,1705171868340,-200266.23504414,0.00036,2]
[311516172,1705171868349,-423.15718534,0.00036,2]
[311516173,1705171868359,-336.0,0.00036,2]
[311516174,1705171868368,-305.55179929,0.00036,3]
[311516175,1705171868377,-1000.0,0.00036,2]
[311516176,1705171868386,-1000.0,0.00036,2]
[311516177,1705171868396,-1816.09,0.00036,2]
[311516178,1705171868405,-2000.0,0.00036,2]
[311516179,1705171868414,-151.0,0.00036,2]
[311516180,1705171868425,-4697.73,0.00036,3]
[311516181,1705171868435,-4697.73,0.00036,3]
[311516182,1705171868445,-4697.73,0.00036,3]
[311516183,1705171868454,-4697.73,0.00036,3]
[311516184,1705171868463,-4697.73,0.00036,3]
[311516185,1705171868472,-4697.73,0.00036,3]
[311516186,1705171868482,-4697.73,0.00036,3]
[311516187,1705171868491,-4697.73,0.00036,3]
[311516188,1705171868500,-4697.73,0.00036,3]
[311516189,1705171868510,-4697.73,0.00036,3]
[311516190,1705171868519,-4697.73,0.00036,3]
[311516191,1705171868529,-4697.73,0.00036,3]
[311516192,1705171868538,-4697.73,0.00036,3]
[311516193,1705171868547,-4697.73,0.00036,3]
[311516194,1705171868557,-4697.73,0.00036,3]
[311516195,1705171868567,-4697.73,0.00036,3]
[311516196,1705171868577,-4697.73,0.00036,3]
[311516197,1705171868586,-4697.73,0.00036,3]
[311516198,1705171868596,-4697.73,0.00036,3]
[311516199,1705171868605,-4697.73,0.00036,3]
[311516200,1705171868614,-5254.57,0.00036,2]
[311516201,1705171868623,-8373.8383588,0.00036,2]
[311516202,1705171868632,-628.5,0.00036003,2]
[311516203,1705171868641,-588.06,0.00036003,2]
[311516204,1705171868650,-150.0,0.0003607,120]
[311516205,1705171868660,-26505.42521516,0.00036089,2]
[311516206,1705171868669,-26505.42521516,0.00036089,2]
[311516207,1705171868679,-508.38406585,0.00036089,2]
[311516208,1705171868874,-25997.04114931,0.00036089,2]
[311516209,1705171868885,-26505.42521516,0.00036089,2]
[311516210,1705171868895,-26505.42521516,0.00036089,2]
[311516211,1705171868905,-26505.42521516,0.00036089,2]
[311516212,1705171868914,-26505.42521516,0.00036089,2]
[311516213,1705171868925,-26505.42521516,0.00036089,2]
[311516214,1705171868935,-11317.73,0.000361,7]
[311516215,1705171868945,-19383.82,0.000361,7]
[311516216,1705171868954,-4979.35,0.000361,7]
[311516217,1705171868965,-150.0,0.00036159,2]
[311516218,1705171868975,-150.0,0.00036159,2]
[311516219,1705171868985,-1097.89223198,0.000362,2]
[311516220,1705171868994,-500.0,0.00036204,7]
[311516221,1705171869004,-216.0,0.0003622,2]
[311516222,1705171869013,-6410.8219031,0.00036241,2]
[311516223,1705171869023,-209.0,0.0003625,2]
[311516224,1705171869033,-209.0,0.0003625,2]
[311516225,1705171869045,-208.0,0.00036254,21]
[311516226,1705171869057,-3197.052341,0.00036259,2]
[311516227,1705171869067,-928.197093,0.00036259,2]
[311516228,1705171869077,-3028.818103,0.00036259,2]
[311516229,1705171869086,-11317.73,0.000363,7]
[311516230,1705171869096,-19383.82,0.000363,7]
[311516231,1705171869105,-4979.35,0.000363,7]
[311516232,1705171869115,-150.0,0.00036337,2]
[311516233,1705171869125,-669.971938,0.000364,21]
[311516234,1705171869135,-195.67,0.00036438,2]
[311516235,1705171869145,-172.498787,0.00036457,2]
[311516236,1705171869155,-500.0,0.00036463,7]
[311516237,1705171869164,-4941.53833641,0.0003649,10]
[311516238,1705171869174,-2983.0,0.0003649,3]
[311516239,1705171869185,-417.95,0.00036493,2]
[311516240,1705171869198,-2007.06,0.000365,2]
[311516241,1705171869212,-761.0,0.000365,2]
[311516242,1705171869226,-158.34328426,0.00036511,7]
[311516243,1705171869240,-150.15714334,0.00036512,7]
[311516244,1705171869255,-231446.1985878,0.00036523,2]
[311516245,1705171869266,-1893.4469477,0.00036523,2]
[311516246,1705171869278,-80853.4260061,0.00036523,2]
[311516247,1705171869292,-824.2022628,0.00036523,2]
[311516248,1705171869305,-3458.4024889,0.00036523,2]
[311516249,1705171869319,-9808.4064236,0.00036523,2]
[311516250,1705171869332,-3175.9763417,0.00036523,2]
[311516251,1705171869347,-467.29593416,0.00036526,7]
[311516252,1705171869359,-153.84,0.0003653,2]
[311516253,1705171869374,-155.98793209,0.00036544,7]
[311516254,1705171869385,-166.46929254,0.00036551,7]
[311516255,1705171869397,-182.980509,0.00036554,2]
[311516256,1705171869410,-171.389841,0.00036554,2]
[311516257,1705171869422,-158.34328426,0.00036564,7]
[311516258,1705171869435,-915.0,0.00036565,3]
[311516259,1705171869448,-3368.3193826,0.00036567,2]
[311516260,1705171869460,-193.64257509,0.0003657,7]
[311516261,1705171869472,-467.29593416,0.00036571,7]
[311516262,1705171869486,-9609.13244148,0.00036592,15]
[311516263,1705171869497,-28520.74254772,0.00036592,15]
[311516264,1705171869508,-1212.617,0.00036592,7]
[311516265,1705171869519,-181.86607891,0.00036592,14]
[311516266,1705171869534,-918.17443809,0.00036592,3]
[311516267,1705171869550,-3000.0,0.00036592,4]
[311516268,1705171869563,-8725.37367418,0.00036592,2]
[311516269,1705171869576,-165076.6725234,0.00036592,2]
[311516270,1705171869590,-16053.70080153,0.00036592,2]
[311516271,1705171869603,-12794.77219403,0.00036592,2]
[311516272,1705171869615,-1210.0,0.00036592,2]
[311516273,1705171869628,-2105.07618465,0.00036592,2]
[311516274,1705171869641,-332.09496905,0.00036592,2]
[311516275,1705171869654,-2868.76198899,0.00036592,2]
[311516276,1705171869668,-4354.73920961,0.00036592,2]
[311516277,1705171869681,-1450.6868081,0.00036592,2]
[311516278,1705171869696,-7034.15408358,0.00036592,2]
[311516279,1705171869709,-2608.33233751,0.00036592,2]
[311516280,1705171869720,-2341.76692576,0.00036592,2]
[311516281,1705171869732,-2548.99068933,0.00036592,2]
[311516282,1705171869743,-3099.97135806,0.00036592,2]
[311516283,1705171869754,-166.25679352,0.00036592,2]
[311516284,1705171869767,-9942.23225461,0.00036592,2]
[311516285,1705171869780,-3637.30157108,0.00036592,2]
[311516286,1705171869793,-11281.19677078,0.00036592,2]
[311516287,1705171869803,-1019.60220594,0.00036592,2]
[311516288,1705171869816,-3536.3282676,0.00036592,2]
[311516289,1705171869834,-172.35090964,0.00036592,2]
[311516290,1705171869845,-996.68900178,0.00036592,2]
[311516291,1705171869868,-160.19327412,0.00036592,2]
[311516292,1705171869879,-8806.72158942,0.00036592,2]
[311516293,1705171869903,-1250.6210434,0.00036592,2]
[311516294,1705171869917,-4714.91931465,0.00036592,2]
[311516295,1705171869929,-1050.59236597,0.00036592,2]
[311516296,1705171869942,-6708.24898868,0.00036592,2]
[311516297,1705171869964,-21647.0586769,0.00036592,2]
[311516298,1705171869975,-12242.0461041,0.00036592,2]
[311516299,1705171869988,-1832.7563721,0.00036592,2]
[311516300,1705171869999,-643.0,0.00036592,2]
[311516301,1705171870010,-925.3591268,0.00036592,2]
[311516302,1705171870021,-8387.21543599,0.00036592,2]
[311516303,1705171870037,-546.56786075,0.00036592,2]
[311516304,1705171870049,-761.55587484,0.00036592,2]
[311516305,1705171870064,-196.65076475,0.00036592,2]
[311516306,1705171870076,-198.79974342,0.00036592,2]
[311516307,1705171870087,-4269.11276967,0.00036592,2]
[311516308,1705171870098,-550.0,0.00036592,2]
[311516309,1705171870109,-996.97098785,0.00036592,2]
[311516310,1705171870121,-10217.36750624,0.00036592,2]
[311516311,1705171870132,-15147.77400338,0.00036592,2]
[311516312,1705171870147,-146437.83059946,0.00036592,2]
[311516313,1705171870158,-1000.19769178,0.00036592,2]
[311516314,1705171870170,-232.93370772,0.00036592,7]
[311516315,1705171870182,-2608.75262736,0.00036592,2]
[311516316,1705171870194,-277.83405262,0.00036592,7]
[311516317,1705171870207,-11527.55611226,0.00036592,7]
[311516318,1705171870219,-90105.94582875,0.00036592,7]
[311516319,1705171870234,-2249.40584687,0.00036592,7]
[311516320,1705171870251,-1000.0,0.00036592,30]
[311516321,1705171870276,-1452.94025032,0.00036592,60]
[311516322,1705171870290,-191.9741086,0.00036592,30]
[311516323,1705171870315,-1047.3839083,0.00036592,120]
[311516324,1705171870333,-2196.94052319,0.00036592,119]
[311516325,1705171870349,-2014.65926159,0.00036592,65]
[311516326,1705171870378,-159.33332837,0.00036592,30]
[311516327,1705171870393,-2443.84466462,0.00036592,30]
[311516328,1705171870411,-160.25208428,0.00036592,30]
[311516329,1705171870427,-160.87442723,0.00036592,60]
[311516330,1705171870443,-335.70750724,0.00036592,30]
[311516331,1705171870458,-3223.88643155,0.00036592,30]
[311516332,1705171870470,-1677.68405705,0.00036592,120]
[311516333,1705171870482,-500.0,0.00036592,120]
[311516334,1705171870495,-277.75763021,0.00036592,30]
[311516335,1705171870516,-155.0,0.00036592,120]
[311516336,1705171870551,-100000.0,0.00036592,10]
[311516337,1705171870568,-300.0,0.00036592,58]
[311516338,1705171870582,-767.32792036,0.00036592,7]
[311516339,1705171870606,-1109.65250852,0.00036592,2]
[311516340,1705171870621,-1750.29970558,0.00036592,2]
[311516341,1705171870638,-1000.0,0.00036592,30]
[311516342,1705171870655,-983.33608892,0.00036592,2]
[311516343,1705171870670,-4597.5607856,0.00036592,2]
[311516344,1705171870686,-38570.59946381,0.00036592,2]
[311516345,1705171870699,-428.65742013,0.00036592,2]
[311516346,1705171870716,-1018.78318604,0.00036592,2]
[311516347,1705171870730,-20287.3526554,0.00036592,2]
[311516348,1705171870746,-4315.74021422,0.00036592,2]
[311516349,1705171870761,-2500.0,0.00036592,2]
[311516350,1705171870776,-553.27742484,0.00036592,2]
[311516351,1705171870795,-2272.61015668,0.00036592,2]
[311516352,1705171870807,-26544.04368195,0.00036592,2]
[311516353,1705171870829,-229.91164429,0.00036592,2]
[311516354,1705171870841,-514.83001874,0.00036592,2]
[311516355,1705171870856,-108847.97128897,0.00036592,2]
[311516356,1705171870900,-6301.97234084,0.00036592,2]
[311516357,1705171870922,-10321.07977688,0.00036592,2]
[311516358,1705171870939,-871.89932358,0.00036592,2]
[311516359,1705171870955,-26348.90036947,0.00036592,2]
[311516360,1705171870972,-3778.55390268,0.00036592,2]
[311516361,1705171870983,-1103.88749084,0.00036592,5]
[311516362,1705171870993,-471.0248856,0.00036592,120]
[311516363,1705171871006,-1967.760791,0.00036592,30]
[311516364,1705171871017,-54004.08336955,0.00036592,30]
[311516365,1705171871027,-3187.6262397,0.00036592,30]
[311516366,1705171871037,-1904.383291,0.00036592,30]
[311516367,1705171871047,-305.224997,0.00036592,30]
[311516368,1705171871057,-794.71486319,0.00036598,7]
[311516369,1705171871067,-160.16388351,0.00036601,2]
[311516370,1705171871077,-167.66604618,0.00036601,7]
[311516371,1705171871087,-895.22,0.00036613,15]
[311516372,1705171871098,-150.15714334,0.0003665,7]
[311516373,1705171871107,-459.00838594,0.00036654,7]
[311516374,1705171871117,-204.27697991,0.00036665,7]
[311516375,1705171871128,-1000.0,0.00036667,2]
[311516376,1705171871138,-450.0,0.00036673,3]
[311516377,1705171871147,-387.35301902,0.00036675,7]
[311516378,1705171871158,-180.59832178,0.00036684,7]
[311516379,1705171871168,-160.45339385,0.00036694,7]
[311516380,1705171871178,-3197.052341,0.00036701,2]
[311516381,1705171871187,-928.197093,0.00036701,2]
[311516382,1705171871197,-3028.818103,0.00036701,2]
[311516383,1705171871207,-459.00838594,0.00036712,7]
[311516384,1705171871216,-151.96967,0.00036712,14]
[311516385,1705171871227,-150.0,0.00036719,2]
[311516386,1705171871237,-150.0,0.00036719,2]
[311516387,1705171871247,-500.0,0.00036721,7]
[311516388,1705171871256,-204.27697991,0.00036725,7]
[311516389,1705171871267,-2000.0,0.00036737,2]
[311516390,1705171871277,-467.29593416,0.00036747,7]
[311516391,1705171871286,-204.27697991,0.00036781,7]
[311516392,1705171871296,-1250.57378861,0.00036784,7]
[311516393,1705171871305,-459.00838594,0.00036785,7]
[311516394,1705171871315,-204.27697991,0.00036792,7]
[311516395,1705171871324,-150.15714334,0.00036794,7]
[311516396,1705171871334,-6558.3994044,0.00036797,2]
[311516397,1705171871343,-64515.76252005,0.000368,3]
[311516398,1705171871352,-151.0,0.000368,2]
[311516399,1705171871362,-157.77,0.000368,3]
[311516400,1705171871372,-157.77,0.000368,3]
[311516401,1705171871383,-157.77,0.000368,3]
[311516402,1705171871393,-157.77,0.000368,3]
[311516403,1705171871403,-157.77,0.000368,3]
[311516404,1705171871412,-157.77,0.000368,3]
[311516405,1705171871423,-180.59832178,0.00036801,7]
[311516406,1705171871433,-150.76968102,0.00036825,7]
[311516407,1705171871443,-155.4256101,0.00036856,7]
[311516408,1705171871452,-167.16207048,0.00036866,7]
[311516409,1705171871462,-1250.57378861,0.00036874,7]
[311516410,1705171871472,-12281.01118475,0.0003688,2]
[311516411,1705171871724,-500.0,0.00022128,2]
[311516412,1705171871734,-500.0,0.00022129,2]
[311516413,1705171871744,-266.58071398,0.00022129,2]
[311516414,1705171871765,-241.22889916,0.00022129,2]
[311516415,1705171871775,-500.0,0.00022129,2]
[311516416,1705171871785,-500.0,0.00022129,2]
[311516417,1705171871794,-500.0,0.00022129,2]
[311516418,1705171871804,-500.0,0.00022129,2]
[311516419,1705171871813,-500.0,0.00022129,2]
[311516420,1705171871823,-500.0,0.0002219,2]
[311516421,1705171871834,-500.0,0.00022999,2]
[311516422,1705171871843,-170.96,0.00022999,2]
[311516423,1705171871853,-155.96693414,0.00023,2]
[311516424,1705171871863,-200.0,0.00028,2]
[311516425,1705171871873,-1038.5507334,0.00036,4]
[311516426,1705171871882,-532.50393734,0.0003688,2]
[311516427,1705171871899,-487.4101649,0.0003688,2]
[311516428,1705171871911,-267.33151559,0.0003688,2]
[311516429,1705171872605,-500.0,0.00022125,2]
[311516430,1705171872615,-365.1,0.00022125,2]
[311516431,1705171872632,-134.9,0.00022125,2]
[311516432,1705171872641,-220.55658555,0.00022125,2]
[311516433,1705171872653,-279.44341445,0.00022125,2]
[311516434,1705171872662,-500.0,0.00022128,2]
[311516435,1705171872671,-23.61216283,0.00022129,2]
[311516436,1705171872682,-476.38783717,0.00022129,2]
[311516437,1705171872693,-500.0,0.00022129,2]
[311516438,1705171872704,-500.0,0.0002219,2]
[311516439,1705171872714,-500.0,0.0002219,2]
[311516440,1705171872723,-500.0,0.0002219,2]
[311516441,1705171872733,-142.31082922,0.0002219,2]
[311516442,1705171872850,-500.0,0.00022125,2]
[311516443,1705171872860,-500.0,0.00022128,2]
[311516444,1705171872868,-500.0,0.00022128,2]
[311516445,1705171872878,-500.0,0.00022128,2]
[311516446,1705171872887,-500.0,0.00022128,2]
[311516447,1705171872896,-500.0,0.00022129,2]
[311516448,1705171872906,-40.245,0.00022129,2]
[311516449,1705171872918,-459.755,0.00022129,2]
[311516450,1705171872928,-357.68917078,0.0002219,2]
[311516451,1705171872936,-500.0,0.0002219,2]
[311516452,1705171872946,-57.31939619,0.0002219,2]
[311516453,1705171872957,-442.68060381,0.0002219,2]
[311516454,1705171872967,-500.0,0.0002219,2]
[311516455,1705171872977,-504.84,0.00022399,2]
[311516456,1705171872986,-500.0,0.00022399,2]
[311516457,1705171872996,-500.0,0.00022769,2]
[311516458,1705171873006,-500.0,0.00022769,2]
[311516459,1705171873015,-500.0,0.00029999,2]
[311516460,1705171873025,-582.9894982,0.00029999,2]
[311516461,1705171873035,-500.0,0.00029999,2]
[311516462,1705171873044,-500.0,0.00029999,2]
[311516463,1705171873054,-1000.0,0.00033015,7]
[311516464,1705171873065,-294.03,0.00033583,2]
[311516465,1705171873074,-12937.16841258,0.0003688,2]
[311516466,1705171873083,-459.00838594,0.0003688,7]
[311516467,1705171873093,-156.27727762,0.00036884,7]
[311516468,1705171873102,-150.15714334,0.00036886,7]
[311516469,1705171873112,-204.27697991,0.00036897,7]
[311516470,1705171873121,-255.0,0.000369,2]
[311516471,1705171873130,-2162.40016985,0.000369,2]
[311516472,1705171873140,-2162.40016982,0.000369,2]
[311516473,1705171873149,-2162.40016982,0.000369,2]
[311516474,1705171873160,-2162.40016982,0.000369,2]
[311516475,1705171873169,-2162.40016982,0.000369,2]
[311516476,1705171873178,-2162.40016982,0.000369,2]
[311516477,1705171873188,-2162.40016982,0.000369,2]
[311516478,1705171873197,-2162.40016982,0.000369,2]
[311516479,1705171873207,-2162.40016982,0.000369,2]
[311516480,1705171873216,-160.45339385,0.00036912,7]
[311516481,1705171873226,-1250.57378861,0.00036921,7]
[311516482,1705171873236,-150.15714334,0.00036923,7]
[311516483,1705171873246,-387.35301902,0.00036932,7]
[311516484,1705171873256,-150.76968102,0.00036973,7]
[311516485,1705171873265,-93316.85234098,0.00036975,2]
[311516486,1705171873281,-8876.02755458,0.00036975,2]
[311516487,1705171873293,-1842.51189628,0.00036975,2]
[311516488,1705171873304,-255.3972002,0.00036975,2]
[311516489,1705171873322,-500.0,0.00022128,2]
[311516490,1705171873332,-4639.80000001,0.00036975,2]
[311516491,1705171873349,-470.114,0.00022125,2]
[311516492,1705171873361,-29.886,0.00022125,2]
[311516493,1705171873371,-650.5371619,0.00036975,2]
[311516494,1705171874391,414.879,0.00022027,2]
[311516495,1705171874458,1000.0,0.00022027,2]
[311516496,1705171874935,250.0,0.00022087,2]
[311516497,1705171880692,57738.1526,0.00022027,2]
[311516501,1705171888439,5000.0,0.00022026,2]
[311516502,1705171948087,379.69,0.00021754,2]
[311516503,1705171948301,379.69,0.00021868,2]
[311516504,1705171948506,379.69,0.00021983,2]
[311516505,1705171948929,379.69,0.00022097,2]
[311516508,1705171955858,154.36,0.00021734,2]
[311516509,1705171956141,154.36,0.00021801,2]
[311516510,1705171956357,154.36,0.00021867,2]
[311516511,1705171956768,154.36,0.00021934,2]
[311516512,1705171957098,154.36,0.00022001,2]
[311516513,1705171957322,154.36,0.00022067,2]
[311516516,1705171989307,150.0,0.00022,2]
[311516517,1705171990510,100000.0,0.00022026,2]
[311516518,1705171992761,250.0,0.00022087,2]
[311516519,1705172004833,942.8485,0.00022026,2]
[311516520,1705172011468,5000.0,0.00022026,2]
[311516521,1705172024823,168.94,0.00021595,2]
[311516529,1705172141817,250.0,0.00021289,2]
[311516530,1705172149751,363.05,0.00019372,2]
[311516531,1705172149968,363.05,0.00021635,2]
[311516532,1705172154230,176.13,0.00021394,2]
[311516533,1705172154540,1000.0,0.00021289,2]
[311516534,1705172178531,2000.0,0.0002127,2]
[311516535,1705172182965,425.84060979,0.0002209,2]
[311516536,1705172219746,230.17065343,0.0002209,2]
[311516537,1705172244700,726.50879298,0.0002209,2]
[311516538,1705172273216,271.48661376,0.0002209,2]
[311516539,1705172281255,211.91,0.00021278,2]
[311516545,1705172368496,150.0,0.00022,2]
[311516546,1705172370471,230.17065342,0.00022088,2]
[311516547,1705172393815,154.36,0.00021437,2]
[311516548,1705172394043,154.36,0.00021539,2]
[311516549,1705172394268,154.36,0.0002164,2]
[311516550,1705172394655,154.36,0.00021742,2]
[311516551,1705172395057,154.36,0.00021843,2]
[311516552,1705172395288,154.36,0.00021945,2]
[311516553,1705172395508,154.36,0.00022047,2]
[311516554,1705172403477,180.99107584,0.00022088,2]
[311516555,1705172404887,328.13655008,0.00022087,2]
[311516556,1705172415779,305.53108644,0.00021278,2]
[311516557,1705172423281,2017.91938215,0.00021065,2]
[311516558,1705172425047,484.33919532,0.00022088,2]
[311516559,1705172428005,243.54059746,0.00021278,2]
[311516560,1705172472506,1565.66,0.00021283,2]
[311516561,1705172499859,157.57711756,0.00022029,2]
[311516562,1705172546808,-295.236981,0.00022115,2]
[311516563,1705172546830,-1135.53862274,0.00022116,2]
[311516564,1705172546853,-152.92,0.00022118,2]
[311516565,1705172546874,-152.65,0.00022119,2]
[311516566,1705172546895,-150.0,0.00022124,2]
[311516567,1705172546917,-150.0,0.00022124,2]
[311516568,1705172546939,-733.58,0.00022125,2]
[311516569,1705172546961,-711.54,0.00022125,2]
[311516570,1705172546981,-719.92,0.00022125,2]
[311516571,1705172547002,-500.0,0.00022125,2]
[311516572,1705172547021,-500.0,0.00022125,2]
[311516573,1705172547041,-500.0,0.00022125,2]
[311516574,1705172547060,-500.0,0.00022125,2]
[311516575,1705172547079,-500.0,0.00022125,2]
[311516576,1705172547101,-500.0,0.00022125,2]
[311516577,1705172547120,-500.0,0.00022125,2]
[311516578,1705172547142,-500.0,0.00022125,2]
[311516579,1705172547162,-500.0,0.00022125,2]
[311516580,1705172547181,-500.0,0.00022125,2]
[311516581,1705172547201,-500.0,0.00022125,2]
[311516582,1705172547220,-500.0,0.00022125,2]
[311516583,1705172547239,-500.0,0.00022125,2]
[311516584,1705172547259,-500.0,0.00022125,2]
[311516585,1705172547279,-286.61,0.00022125,2]
[311516586,1705172547299,-500.0,0.00022125,2]
[311516587,1705172547319,-500.0,0.00022125,2]
[311516588,1705172547340,-500.0,0.00022125,2]
[311516589,1705172547361,-612.59,0.00022125,2]
[311516590,1705172547380,-500.0,0.00022125,2]
[311516591,1705172547400,-500.0,0.00022125,2]
[311516592,1705172547421,-500.0,0.00022125,2]
[311516593,1705172547441,-500.0,0.00022125,2]
[311516594,1705172547460,-500.0,0.00022125,2]
[311516595,1705172547479,-500.0,0.00022125,2]
[311516596,1705172547498,-500.0,0.00022125,2]
[311516597,1705172547518,-500.0,0.00022125,2]
[311516598,1705172547538,-500.0,0.00022125,2]
[311516599,1705172547558,-500.0,0.00022125,2]
[311516600,1705172547577,-500.0,0.00022125,2]
[311516601,1705172547597,-500.0,0.00022125,2]
[311516602,1705172547617,-500.0,0.00022125,2]
[311516603,1705172547639,-500.0,0.00022125,2]
[311516604,1705172547659,-500.0,0.00022125,2]
[311516605,1705172547681,-214.08,0.00022125,2]
[311516606,1705172547702,-500.0,0.00022125,2]
[311516607,1705172547722,-500.0,0.00022125,2]
[311516608,1705172547743,-500.0,0.00022125,2]
[311516609,1705172547763,-500.0,0.00022125,2]
[311516610,1705172547783,-208.14,0.00022126,2]